fUSD/lending_fUSD_20241024
["ID","MTS","AMOUNT","RATE_DAILY","PERIOD"]
[340783240,1729810287177,-500.0,0.00013973,2]
[340783241,1729810287200,-280.79278657,0.00013999,2]
[340783242,1729810287225,-788311.93575578,0.00014,2]
[340783299,1729810710796,550.56,0.00010984,2]
[340783301,1729811086435,250.0,0.0001,2]
[340783302,1729811271763,-150.0,0.00011989,2]
[340783303,1729811271792,-300.0,0.00012,2]
[340783304,1729811271822,-183.27,0.00012346,2]
[340783305,1729811271848,-5564.34,0.00012376,2]
[340783306,1729811271874,-1019.16900724,0.00012384,2]
[340783307,1729811271900,-200.0,0.00012384,2]
[340783308,1729811271926,-1595.4,0.00012388,2]
[340783309,1729811271951,-2275.78,0.00012398,2]
[340783310,1729811271978,-162.92,0.00012417,2]
[340783311,1729811272005,-3169.98,0.00012508,2]
[340783312,1729811272034,-800.0,0.00012519,2]
[340783313,1729811272060,-358.48,0.00012519,2]
[340783314,1729811272084,-1852.42,0.00012588,2]
[340783315,1729811272112,-440.5,0.00012588,2]
[340783316,1729811272137,-150.0,0.00012616,2]
[340783317,1729811272163,-533.78,0.00012616,2]
[340783318,1729811272189,-219.6,0.00012616,2]
[340783319,1729811272215,-150.99,0.00012616,2]
[340783320,1729811272241,-155.41,0.00012623,2]
[340783321,1729811272269,-8232.76,0.00012662,2]
[340783322,1729811272295,-18838.06,0.00012662,2]
[340783323,1729811272322,-23900.0,0.00012685,2]
[340783324,1729811272346,-18565.0,0.00012685,2]
[340783325,1729811272371,-250.0,0.00012724,2]
[340783326,1729811272395,-250.0,0.00012724,2]
[340783327,1729811272421,-1204.31,0.00012766,2]
[340783328,1729811272447,-4247.26,0.00012855,2]
[340783329,1729811272475,-997.01,0.00013001,2]
[340783330,1729811272499,-329.43,0.00013001,2]
[340783331,1729811272525,-167.47,0.00013153,2]
[340783332,1729811272552,-550.56,0.00013248,2]
[340783333,1729811272577,-200.0,0.00013294,2]
[340783334,1729811272603,-682.0,0.00013448,2]
[340783335,1729811272627,-178.66,0.0001345,2]
[340783336,1729811272652,-426.8603,0.00013456,2]
[340783337,1729811272677,-329.43,0.00013651,2]
[340783338,1729811272702,-184.09,0.00013667,2]
[340783339,1729811272727,-7188.92168998,0.000138,2]
[340783340,1729811272752,-4449.1479,0.000138,2]
[340783341,1729811272778,-1057.2815,0.000138,2]
[340783342,1729811272807,-41673.7327,0.00013801,2]
[340783343,1729811272831,-1000.0,0.00013805,2]
[340783344,1729811272856,-486.3573,0.00013823,2]
[340783345,1729811272881,-10320.0666,0.0001389,2]
[340783346,1729811272907,-451.7876,0.0001389,2]
[340783347,1729811272932,-2339.2576,0.0001389,2]
[340783348,1729811272958,-196.83952937,0.000139,2]
[340783349,1729811272983,-162.63685541,0.000139,2]
[340783350,1729811273159,-1994.64772429,0.000139,2]
[340783351,1729811273185,-1689.8105,0.000139,2]
[340783352,1729811273211,-431.46406224,0.000139,2]
[340783353,1729811273236,-500.0,0.00013973,2]
[340783354,1729811273260,-321.87355022,0.00013973,2]
[340783355,1729811273284,-169.60500023,0.0001399,2]
[340783356,1729811273313,-206646.851006,0.0001399,3]
[340783357,1729811273337,-284.05005846,0.00013999,2]
[340783358,1729811273363,-1824820.72951656,0.00014,2]
[340783359,1729811355099,-549.33,0.00011825,2]
[340783360,1729811355120,-150.0,0.00011982,2]
[340783361,1729811355142,-281.72444642,0.00012573,2]
[340783362,1729811378037,118.86982505,0.00011823,2]
[340783367,1729811431692,-31.13017495,0.00011823,2]
[340783368,1729811431702,-275.21,0.00013501,2]
[340783369,1729811431711,-143.40696532,0.00013501,2]
[340783370,1729811431757,-1472.61303468,0.00013501,2]
[340783371,1729811431767,-250.0,0.00013578,2]
[340783372,1729811431776,-250.0,0.00013628,2]
[340783373,1729811431785,-1623.8,0.00013748,2]
[340783374,1729811431795,-2129.32,0.00013869,2]
[340783375,1729811431804,-528.8293,0.0001389,2]
[340783376,1729811431813,-7092.356,0.000139,2]
[340783377,1729811431822,-500.0,0.00013973,2]
[340783378,1729811431832,-466.9566446,0.00013973,2]
[340783379,1729811431841,-193413.463963,0.0001399,3]
[340783380,1729811431850,-4470.966725,0.00013993,2]
[340783381,1729811431859,-775.28530908,0.00014,2]
[340783382,1729811431870,-300.0,0.00014,2]
[340783383,1729811431881,-1357.03628517,0.00014,2]
[340783384,1729811431892,-7174.59119563,0.00014,2]
[340783385,1729811431902,-21450.85826049,0.00014,2]
[340783386,1729811431913,-4539.29648408,0.00014,2]
[340783387,1729811431924,-665.110225,0.00014,2]
[340783388,1729811431934,-3741.43535012,0.00014,2]
[340783389,1729811431945,-17318.034514,0.00014,2]
[340783390,1729811431956,-27441.06984149,0.00014,2]
[340783391,1729811431966,-1381.62938731,0.00014,2]
[340783392,1729811431978,-700.0,0.00014,2]
[340783393,1729811431989,-15021.70197133,0.00014,2]
[340783394,1729811432000,-604.98,0.00014,2]
[340783395,1729811432011,-1684.98777253,0.00014,2]
[340783396,1729811432023,-2233.56930441,0.00014,2]
[340783397,1729811432037,-1157.66053093,0.00014,2]
[340783398,1729811432050,-1709.87048133,0.00014,2]
[340783399,1729811432061,-9511.97964083,0.00014,2]
[340783400,1729811432155,-2661.4245912,0.00014,2]
[340783401,1729811432166,-1238.62357742,0.00014,2]
[340783402,1729811432176,-1467.87324433,0.00014,2]
[340783403,1729811432188,-654.85,0.00014,2]
[340783412,1729811437835,-3365.95,0.00014,2]
[340783413,1729811437846,-147159.56400307,0.00014,2]
[340783414,1729811438071,-895.25,0.00014,2]
[340783415,1729811438084,-7457.51635288,0.00014,2]
[340783416,1729811438096,-3125.94448,0.00014,2]
[340783417,1729811438109,-628.38999299,0.00014,2]
[340783418,1729811438122,-705.977646,0.00014,2]
[340783422,1729811440076,-747.42234938,0.00014,2]
[340783423,1729811440123,-13702.9742399,0.00014,2]
[340783424,1729811440134,-7443.06862629,0.00014,2]
[340783425,1729811440146,-14353.95713381,0.00014,2]
[340783512,1729811444027,-16364.15851352,0.00014,2]
[340783513,1729811444039,-173526.58615411,0.00014,2]
[340783515,1729811445720,-743.3523116,0.00014,2]
[340783516,1729811445732,-3282.1960447,0.00014,2]
[340783517,1729811446216,-496.12373766,0.00014,2]
[340783518,1729811446231,-1686.91343731,0.00014,2]
[340783523,1729811446372,-445.31046419,0.00014,2]
[340783524,1729811446384,-2116.95788424,0.00014,2]
[340783525,1729811446395,-3586.02704976,0.00014,2]
[340783526,1729811446406,-679384.30824105,0.00014,2]
[340783527,1729811446417,-2041.65220829,0.00014,2]
[340783528,1729811446429,-3204.02547468,0.00014,2]
[340783529,1729811446441,-4553.8190213,0.00014,2]
[340783530,1729811475196,-517.0,0.00013968,2]
[340783531,1729811511346,-150.0,0.00013802,2]
[340783532,1729811511389,-5493.896954,0.000139,2]
[340783533,1729811511431,-150.0,0.00013936,2]
[340783534,1729811511474,-235.24,0.00013968,2]
[340783535,1729811511515,-440.57385661,0.00013999,2]
[340783536,1729811511556,-4776.40509897,0.00013999,2]
[340783537,1729811511596,-300.0,0.00013999,2]
[340783538,1729811511637,-198.83504092,0.00013999,2]
[340783539,1729811511681,-1737605.10307823,0.00014,2]
[340783540,1729811511827,-350.0,0.00014,2]
[340783541,1729811511867,-2000.0,0.00014,2]
[340783542,1729811511908,-200.0,0.00014,2]
[340783543,1729811511947,-73295.1444292,0.00014003,2]
[340783544,1729811511987,-14989.6019429,0.00014003,2]
[340783545,1729811512028,-332.88257161,0.00014043,2]
[340783546,1729811512071,-477.79,0.00014081,2]
[340783547,1729811512114,-800.0,0.00014084,2]
[340783548,1729811512157,-549.33,0.00014089,2]
[340783549,1729811512201,-422.19,0.00014128,2]
[340783550,1729811512241,-2000.0,0.0001414,2]
[340783551,1729811512281,-200.0,0.0001414,2]
[340783552,1729811512322,-332.88257161,0.00014186,2]
[340783553,1729811512363,-2000.0,0.00014281,2]
[340783554,1729811512403,-200.0,0.00014281,2]
[340783555,1729811512445,-329.43,0.00014302,2]
[340783556,1729811512486,-332.88257161,0.00014329,2]
[340783557,1729811512528,-332.88257161,0.00014471,2]
[340783558,1729811512572,-332.88257161,0.00014614,2]
[340783559,1729811512615,-332.88257161,0.00014757,2]
[340783560,1729811512657,-332.88257161,0.000149,2]
[340783561,1729811512700,-162.6368554,0.000149,2]
[340783562,1729811512753,-1506.78579283,0.000149,2]
[340783563,1729811512805,-1000.0,0.00014925,2]
[340783564,1729811512857,-1000.0,0.00014925,2]
[340783565,1729811512907,-1000.0,0.00014925,2]
[340783566,1729811512959,-574.5003,0.00014925,2]
[340783567,1729811513010,-329.43,0.00014952,2]
[340783568,1729811513061,-200.0,0.00014955,2]
[340783569,1729811513111,-500.0,0.00014973,2]
[340783570,1729811513159,-79505.5134289,0.0001499,2]
[340783571,1729811513208,-85715.8824285,0.0001499,2]
[340783572,1729811513259,-16259.68552,0.0001499,2]
[340783573,1729811513310,-17529.7690972,0.0001499,2]
[340783574,1729811513357,-4813.6413911,0.0001499,2]
[340783575,1729811513408,-5156.3160572,0.0001499,2]
[340783576,1729811513457,-126997.83749788,0.00015,2]
[340783577,1729811513508,-1986217.28322889,0.00015,2]
[340783578,1729811754629,-300.0,0.00013737,2]
[340783579,1729811754667,-201.21,0.00013738,2]
[340783580,1729811754706,-23900.0,0.00013738,2]
[340783581,1729811754749,-1836.153,0.000138,2]
[340783582,1729811754907,-9720.6168,0.000138,2]
[340783583,1729811754950,-157705.3814,0.000138,2]
[340783584,1729811754990,-494.4045,0.000138,2]
[340783585,1729811755033,-6700.96143319,0.000138,2]
[340783586,1729811755075,-664.4252,0.000138,2]
[340783587,1729811755115,-925.6,0.00013869,2]
[340783588,1729811755155,-726.97,0.00013872,2]
[340783589,1729811755193,-500.0,0.00013873,2]
[340783590,1729811755231,-401.74101192,0.00013873,2]
[340783591,1729811755270,-726.97,0.00013876,2]
[340783592,1729811755308,-150.0,0.00013879,2]
[340783593,1729811755348,-726.97,0.0001388,2]
[340783594,1729811755386,-407.52,0.0001388,3]
[340783595,1729811755426,-371.5,0.0001388,3]
[340783596,1729811755464,-185.75,0.0001388,3]
[340783597,1729811755504,-557.29,0.0001388,3]
[340783598,1729811755540,-726.97,0.00013883,2]
[340783599,1729811755576,-726.97,0.00013887,2]
[340783600,1729811755619,-9934.4518117,0.00013889,2]
[340783601,1729811755659,-500.0,0.00013889,2]
[340783602,1729811755699,-500.0,0.00013889,2]
[340783603,1729811755809,-500.0,0.00013889,2]
[340783604,1729811755850,-500.0,0.00013889,2]
[340783605,1729811755892,-500.0,0.00013889,2]
[340783606,1729811755932,-500.0,0.00013889,2]
[340783607,1729811755973,-500.0,0.00013889,2]
[340783608,1729811756016,-500.0,0.00013889,2]
[340783609,1729811756057,-500.0,0.00013889,2]
[340783610,1729811756100,-500.0,0.00013889,2]
[340783611,1729811756142,-500.0,0.00013889,2]
[340783612,1729811756183,-372.34969816,0.00013889,2]
[340783613,1729811756224,-500.0,0.00013889,2]
[340783614,1729811756268,-293.86926909,0.00013889,2]
[340783615,1729811756311,-500.0,0.00013889,2]
[340783616,1729811756357,-500.0,0.00013889,2]
[340783617,1729811756397,-500.0,0.00013889,2]
[340783618,1729811756439,-500.0,0.00013889,2]
[340783619,1729811756481,-500.0,0.00013889,2]
[340783620,1729811756521,-500.0,0.00013889,2]
[340783621,1729811756563,-500.0,0.00013889,2]
[340783622,1729811756605,-500.0,0.00013889,2]
[340783623,1729811756648,-500.0,0.00013889,2]
[340783624,1729811756691,-500.0,0.00013889,2]
[340783625,1729811756746,-500.0,0.00013889,2]
[340783626,1729811756794,-500.0,0.00013889,2]
[340783627,1729811756847,-500.0,0.00013889,2]
[340783628,1729811756898,-500.0,0.00013889,2]
[340783629,1729811756946,-452.46354415,0.00013889,2]
[340783630,1729811756996,-500.0,0.00013889,2]
[340783631,1729811757045,-500.0,0.00013889,2]
[340783632,1729811757090,-500.0,0.00013889,2]
[340783633,1729811757140,-500.0,0.00013889,2]
[340783634,1729811757190,-500.0,0.00013889,2]
[340783635,1729811757238,-500.0,0.00013889,2]
[340783636,1729811757285,-500.0,0.00013889,2]
[340783637,1729811757334,-500.0,0.00013889,2]
[340783638,1729811757382,-500.0,0.00013889,2]
[340783639,1729811757429,-500.0,0.00013889,2]
[340783640,1729811757476,-500.0,0.00013889,2]
[340783641,1729811757525,-500.0,0.00013889,2]
[340783642,1729811757574,-500.0,0.00013889,2]
[340783643,1729811757623,-500.0,0.00013889,2]
[340783644,1729811757671,-500.0,0.00013889,2]
[340783645,1729811757893,-500.0,0.00013889,2]
[340783646,1729811757935,-500.0,0.00013889,2]
[340783647,1729811757976,-500.0,0.00013889,2]
[340783648,1729811758016,-500.0,0.00013889,2]
[340783649,1729811758057,-500.0,0.00013889,2]
[340783650,1729811758099,-500.0,0.00013889,2]
[340783651,1729811758140,-500.0,0.00013889,2]
[340783652,1729811758180,-500.0,0.0001389,2]
[340783653,1729811758220,-1000.0,0.0001389,2]
[340783654,1729811758259,-20200.1402,0.0001389,2]
[340783655,1729811758300,-2500.0,0.0001389,2]
[340783656,1729811758340,-1248.2176,0.0001389,2]
[340783657,1729811758382,-124553.1745,0.0001389,2]
[340783658,1729811758423,-726.97,0.0001389,2]
[340783659,1729811758464,-726.97,0.00013894,2]
[340783660,1729811758504,-726.97,0.00013898,2]
[340783661,1729811758543,-675.2984,0.000139,2]
[340783662,1729811758583,-23077.3988,0.000139,2]
[340783663,1729811758622,-100000.0,0.000139,2]
[340783664,1729811758663,-613.7878,0.000139,2]
[340783665,1729811758702,-2009.4492,0.000139,2]
[340783666,1729811758812,-850.7923,0.000139,2]
[340783667,1729811758853,-1654.3905,0.000139,2]
[340783668,1729811758895,-726.97,0.00013901,2]
[340783669,1729811758936,-726.97,0.00013905,2]
[340783670,1729811758977,-726.97,0.00013909,2]
[340783671,1729811759018,-726.97,0.00013912,2]
[340783672,1729811759059,-726.97,0.00013916,2]
[340783673,1729811759099,-1000.0,0.00013919,2]
[340783674,1729811759142,-726.97,0.0001392,2]
[340783675,1729811759183,-726.97,0.00013923,2]
[340783676,1729811759225,-726.97,0.00013927,2]
[340783677,1729811759278,-726.97,0.00013931,2]
[340783678,1729811759320,-726.97,0.00013934,2]
[340783679,1729811759362,-726.97,0.00013938,2]
[340783680,1729811759405,-726.97,0.00013941,2]
[340783681,1729811759448,-200.0,0.00014119,2]
[340783682,1729811759489,-196.22,0.00014451,2]
[340783683,1729811759529,-500.0,0.000146,5]
[340783684,1729811759570,-1100.0,0.000147,5]
[340783685,1729811759610,-1074.21,0.000147,2]
[340783686,1729811759651,-1000.0,0.000148,2]
[340783687,1729811759773,-1700.0,0.000148,5]
[340783688,1729811759812,-228.97591558,0.00014898,2]
[340783689,1729811759852,-228.97591556,0.00014899,2]
[340783690,1729811759892,-881.972543,0.000149,2]
[340783691,1729811759934,-6683.71994502,0.000149,2]
[340783692,1729811759974,-2200.0,0.000149,5]
[340783693,1729811760014,-4573.45468121,0.000149,2]
[340783694,1729811760056,-228.97591556,0.000149,2]
[340783695,1729811760097,-179.75450152,0.000149,2]
[340783696,1729811760138,-2899.19323078,0.000149,2]
[340783697,1729811760178,-407.8282,0.000149,2]
[340783698,1729811760219,-500.0,0.00014973,2]
[340783699,1729811760261,-500.0,0.00014973,2]
[340783700,1729811760304,-170.57857532,0.00014989,2]
[340783701,1729811760345,-500.0,0.00014989,2]
[340783702,1729811760387,-500.0,0.00014989,2]
[340783703,1729811760429,-500.0,0.00014989,2]
[340783704,1729811760471,-200.09953592,0.00014989,2]
[340783705,1729811760515,-251541.966108,0.0001499,2]
[340783706,1729811760559,-186806.33796432,0.0001499,2]
[340783707,1729811795043,-100000.0,0.000138,2]
[340783708,1729811795083,-500.0,0.00013873,2]
[340783709,1729811795124,-151.83470758,0.00014977,2]
[340783710,1729811795167,-28174.45119668,0.0001499,2]
[340783711,1729811795210,-1005.02542301,0.00014998,2]
[340783712,1729811795250,-1000.0,0.00014999,2]
[340783713,1729811795290,-1000.0,0.00014999,2]
[340783714,1729811795330,-1000.0,0.00014999,2]
[340783715,1729811795483,-1000.0,0.00014999,2]
[340783716,1729811795523,-1000.0,0.00014999,2]
[340783717,1729811795564,-1000.0,0.00014999,2]
[340783718,1729811795603,-1000.0,0.00014999,2]
[340783719,1729811795643,-1000.0,0.00014999,2]
[340783720,1729811795684,-1000.0,0.00014999,2]
[340783721,1729811795723,-1000.0,0.00014999,2]
[340783722,1729811795763,-595.0,0.00014999,2]
[340783723,1729811795803,-656.0,0.00014999,2]
[340783724,1729811795844,-151.20454897,0.00014999,2]
[340783725,1729811795888,-1417.36959839,0.00014999,5]
[340783726,1729811795929,-500.0,0.00014999,2]
[340783727,1729811795970,-500.0,0.00014999,2]
[340783728,1729811796013,-190.06967515,0.00014999,2]
[340783729,1729811796057,-500.0,0.00014999,2]
[340783730,1729811796101,-421.5410299,0.00014999,2]
[340783731,1729811796144,-500.0,0.00014999,2]
[340783732,1729811796187,-500.0,0.00014999,2]
[340783733,1729811796230,-495.24635442,0.00014999,2]
[340783734,1729811796273,-194.9410596,0.00015,2]
[340783735,1729811796389,-2353547.3164063,0.00015,2]
[340783736,1729811831744,-1000.0,0.000138,2]
[340783737,1729811831790,-2500.0,0.000148,2]
[340783738,1729811831831,-300.0,0.00014999,2]
[340783739,1729811831871,-66841.75804438,0.00015,2]
[340783740,1729811831911,-405.91592361,0.00015,2]
[340783741,1729811831953,-73369.83971442,0.00015,2]
[340783742,1729811832113,-2570.0,0.00015,2]
[340783743,1729811832157,-151.0,0.00015,2]
[340783744,1729811832199,-151.0,0.00015,2]
[340783745,1729811832240,-151.0,0.00015,2]
[340783746,1729811832279,-200.553744,0.00015,2]
[340783747,1729811832321,-151.0,0.00015,2]
[340783748,1729811832361,-3680.8333618,0.00015038,2]
[340783749,1729811832403,-13659.5986127,0.00015048,2]
[340783750,1729811832443,-66791.7838631,0.00015058,2]
[340783751,1729811832484,-300.0,0.00015068,2]
[340783752,1729811832526,-815.04,0.0001525,3]
[340783753,1729811832566,-743.0,0.0001525,3]
[340783754,1729811832607,-371.5,0.0001525,3]
[340783755,1729811832646,-996.86316181,0.000153,2]
[340783756,1729811832687,-952.05497628,0.000153,2]
[340783757,1729811832727,-158.24,0.00015342,2]
[340783758,1729811832766,-159.47,0.00015342,2]
[340783759,1729811832807,-158.43,0.00015342,2]
[340783760,1729811832847,-158.85,0.00015342,2]
[340783761,1729811832886,-184.09,0.00015354,2]
[340783762,1729811832997,-481.25880437,0.000154,2]
[340783763,1729811833036,-813.75431134,0.000155,2]
[340783764,1729811833077,-379.2702873,0.000156,2]
[340783765,1729811833118,-1000.0,0.00015658,2]
[340783766,1729811833164,-615.0,0.000157,2]
[340783767,1729811833203,-2869.00313612,0.0001575,2]
[340783768,1729811833243,-422.19,0.00015894,2]
[340783769,1729811833283,-333.0,0.000159,2]
[340783770,1729811833322,-400.0,0.00016,2]
[340783771,1729811833361,-3221.49,0.00016116,2]
[340783772,1729811833400,-1000.0,0.00016342,2]
[340783773,1729811833446,-549.33,0.00016353,2]
[340783774,1729811833482,-420.0,0.00016416,2]
[340783775,1729811833518,-300.0,0.00016438,2]
[340783776,1729811833557,-2391.9,0.00016638,2]
[340783777,1729811833596,-172.11,0.00016704,2]
[340783778,1729811833636,-154.77,0.00016712,2]
[340783779,1729811833674,-900.49,0.00016837,2]
[340783780,1729811833714,-2907.38,0.00017008,2]
[340783781,1729811833753,-1000.0,0.00017398,2]
[340783782,1729811833793,-172.11,0.00017539,2]
[340783783,1729811833910,-422.19,0.0001766,2]
[340783784,1729811833950,-587.0,0.00017966,2]
[340783785,1729811833990,-450.0,0.00018,2]
[340783786,1729811834031,-196.22,0.00018064,2]
[340783787,1729811834070,-1000.0,0.00018346,2]
[340783788,1729811834110,-172.11,0.00018374,2]
[340783789,1729811834150,-549.33,0.00018617,2]
[340783790,1729811834189,-162.92,0.00018626,2]
[340783791,1729811834229,-150.0,0.00018802,2]
[340783792,1729811834270,-153.5612546,0.00018802,2]
[340783793,1729811834311,-500.0,0.00018802,2]
[340783794,1729811834351,-500.0,0.00018802,2]
[340783795,1729811834390,-790.0,0.00018802,2]
[340783796,1729811834432,-891.0,0.00018802,2]
[340783797,1729811834476,-1000.0,0.00019138,2]
[340783798,1729811834517,-200.0,0.00019178,2]
[340783799,1729811834556,-176.89,0.00019178,2]
[340783800,1729811834595,-172.11,0.00019209,2]
[340783801,1729811834636,-422.19,0.00019426,2]
[340783802,1729811834674,-823.0,0.00019663,2]
[340783803,1729811834715,-370.27475317,0.000199,2]
[340783804,1729811834830,-1061.61,0.0002,2]
[340783805,1729811834870,-119504.17534224,0.0002,2]
[340783806,1729811834911,-500.0,0.0002,2]
[340783807,1729811834951,-151.0,0.0002,2]
[340783808,1729811834990,-3409.96,0.0002,2]
[340783809,1729811835030,-3409.96,0.0002,2]
[340783810,1729811835068,-3409.96,0.0002,2]
[340783811,1729811835647,150.0,0.00018802,2]
[340783812,1729811840128,854.0,0.00018802,2]
[340783813,1729811849555,435.66070876,0.00018426,2]
[340783814,1729811868798,-1199.2962,0.000149,2]
[340783815,1729811868839,-499.74760121,0.00018426,2]
[340783816,1729811868881,-172.11,0.00020044,2]
[340783817,1729811868921,-175.28,0.00020548,2]
[340783818,1729811868965,-6683.71994499,0.00020678,2]
[340783819,1729811869007,-1000.0,0.00020878,2]
[340783820,1729811869047,-1134.74339737,0.00021,2]
[340783821,1729811869088,-187.23667347,0.00021,2]
[340783822,1729811869128,-422.19,0.00021192,2]
[340783823,1729811869169,-4463.73172268,0.0002152,2]
[340783824,1729811869210,-1152.0,0.0002152,2]
[340783825,1729811869249,-500.0,0.00021542,2]
[340783826,1729811869290,-500.0,0.00021542,2]
[340783827,1729811869437,-790.0,0.00021542,2]
[340783828,1729811869484,-854.0,0.00021542,2]
[340783829,1729811869527,-196.22,0.00021676,2]
[340783830,1729811869569,-330.36,0.00021918,2]
[340783831,1729811869611,-174.9,0.00021918,2]
[340783832,1729811869653,-150.0,0.00021918,2]
[340783833,1729811869695,-469.32481873,0.00022,5]
[340783834,1729811869736,-756.79189509,0.00022,2]
[340783835,1729811869777,-243.57166573,0.00022,2]
[340783836,1729811869818,-200.0,0.00022,20]
[340783837,1729811869859,-550.0,0.00022,2]
[340783838,1729811869899,-228.43919492,0.0002211,2]
[340783839,1729811869941,-1613.0,0.00023552,2]
[340783840,1729811869982,-167.0,0.00023732,2]
[340783841,1729811870022,-167.39,0.00023732,2]
[340783842,1729811870062,-2907.38,0.00023811,2]
[340783843,1729811870102,-600.0,0.00024,2]
[340783844,1729811870141,-500.0,0.00024281,2]
[340783845,1729811870180,-500.0,0.00024281,2]
[340783846,1729811870221,-790.0,0.00024281,2]
[340783847,1729811870262,-854.0,0.00024281,2]
[340783848,1729811870384,-167.0,0.00024516,2]
[340783849,1729811870426,-5636.06383019,0.00024598,2]
[340783850,1729811870467,-306.49,0.00024658,2]
[340783851,1729811870508,-150.0,0.00024658,2]
[340783852,1729811870550,-164.64,0.00024877,30]
[340783853,1729811870590,-1037.95008737,0.0002495,2]
[340783854,1729811870630,-167.0,0.00025299,2]
[340783855,1729811870668,-150.0,0.000253,10]
[340783856,1729811870709,-167.39,0.00025691,2]
[340783857,1729811870751,-2258.0,0.00025777,2]
[340783858,1729811870792,-650.0,0.00026,2]
[340783859,1729811870838,-167.0,0.00026083,2]
[340783860,1729811870879,-571.27,0.00026211,2]
[340783861,1729811870919,-412.36962951,0.000264,2]
[340783862,1729811870958,-150.0,0.000264,2]
[340783863,1729811870999,-159.47,0.00026401,2]
[340783864,1729811871040,-6683.71994499,0.00026456,2]
[340783865,1729811871081,-167.0,0.00026866,2]
[340783866,1729811871120,-850.74875246,0.00027021,2]
[340783867,1729811871160,-850.0,0.00027021,2]
[340783868,1729811871201,-790.0,0.00027021,2]
[340783869,1729811871321,-854.0,0.00027021,2]
[340783870,1729811871360,-360.0,0.000273,2]
[340783871,1729811871401,-953.0,0.000273,2]
[340783872,1729811871442,-150.84793257,0.00027397,120]
[340783873,1729811871484,-150.26,0.00027397,2]
[340783874,1729811871524,-200.96740172,0.00027397,2]
[340783875,1729811871566,-158.43,0.00027507,2]
[340783876,1729811871606,-167.0,0.00027649,2]
[340783877,1729811871647,-167.39,0.00027649,2]
[340783878,1729811871690,-151.0,0.00027671,7]
[340783879,1729811871731,-2000.0,0.00027671,2]
[340783880,1729811871772,-700.0,0.00028,2]
[340783881,1729811871813,-150.26,0.00028158,2]
[340783882,1729811871854,-3162.0,0.00028211,2]
[340783883,1729811871898,-571.27,0.00028475,2]
[340783884,1729811871939,-250.0,0.00028894,2]
[340783885,1729811871979,-150.26,0.00028919,2]
[340783886,1729811872019,-150.0,0.0002914,2]
[340783887,1729811872320,-5892.0,0.00029185,2]
[340783888,1729811872362,-232.71,0.00029185,2]
[340783889,1729811872403,-227.439,0.00029185,2]
[340783890,1729811872521,-560.0,0.00029285,2]
[340783891,1729811872563,-813.0,0.00029285,2]
[340783892,1729811872603,-1246.0,0.00029285,2]
[340783893,1729811872645,-304.177,0.00029285,2]
[340783894,1729811872685,-1152.0,0.00029285,2]
[340783895,1729811872728,-13549.0,0.00029285,2]
[340783896,1729811872768,-937.0,0.00029285,2]
[340783897,1729811872810,-150.0,0.00029285,2]
[340783898,1729811872852,-556.0,0.00029285,2]
[340783899,1729811872892,-1085.0,0.00029285,2]
[340783900,1729811872934,-1910.0,0.00029285,2]
[340783901,1729811872975,-621.602,0.00029285,2]
[340783902,1729811873015,-809.0,0.00029285,2]